[Event "Live Chess"]
[Site "Chess.com"]
[Date "2023.05.21"]
[Round "-"]
[White "Mikhail_Golubev"]
[Black "PrinceCharming_1"]
[Result "1-0"]
[WhiteElo "2467"]
[BlackElo "1624"]
[TimeControl "300"]
[EndTime "2:24:28 PDT"]
[Termination "Mikhail_Golubev won by resignation"]

1. Na3 {[%clk 0:04:57.2]} 1... Nf6 {[%clk 0:04:59]} 2. c3 {[%clk 0:04:56]} 2...
d5 {[%clk 0:04:58.1]} 3. Nc2 {[%clk 0:04:55.4]} 3... c5 {[%clk 0:04:57.6]} 4. d3
{[%clk 0:04:53.5]} 4... e5 {[%clk 0:04:57.3]} 5. g3 {[%clk 0:04:52.1]} 5... Nc6
{[%clk 0:04:56.9]} 6. Bg2 {[%clk 0:04:51.4]} 6... Bd6 {[%clk 0:04:56.4]} 7. Nf3
{[%clk 0:04:49.8]} 7... O-O {[%clk 0:04:55.3]} 8. O-O {[%clk 0:04:48.9]} 8...
Bg4 {[%clk 0:04:52.6]} 9. Ne3 {[%clk 0:04:45]} 9... Be6 {[%clk 0:04:49.3]} 10.
Ng5 {[%clk 0:04:42.8]} 10... Bd7 {[%clk 0:04:47.8]} 11. Nxd5 {[%clk 0:04:41.3]}
11... Nxd5 {[%clk 0:04:46.9]} 12. Bxd5 {[%clk 0:04:40.8]} 12... h6 {[%clk
0:04:45.2]} 13. Nf3 {[%clk 0:04:37.7]} 13... Bh3 {[%clk 0:04:42.7]} 14. Re1
{[%clk 0:04:36.5]} 14... Ne7 {[%clk 0:04:41.2]} 15. Bb3 {[%clk 0:04:31.2]} 15...
Qc7 {[%clk 0:04:31.4]} 16. e4 {[%clk 0:04:23.3]} 16... Bg4 {[%clk 0:04:29.1]}
17. Re3 {[%clk 0:04:20]} 17... Ng6 {[%clk 0:04:11.9]} 18. Kg2 {[%clk 0:04:15.2]}
18... Qd7 {[%clk 0:04:09.4]} 19. Qh1 {[%clk 0:03:35.9]} 19... Bh3+ {[%clk
0:03:58.2]} 20. Kg1 {[%clk 0:03:34.6]} 20... Nf4 {[%clk 0:03:50.7]} 21. Ne1
{[%clk 0:03:30.2]} 21... Ng6 {[%clk 0:03:33.2]} 22. Bd1 {[%clk 0:02:58.7]} 22...
f5 {[%clk 0:03:25.6]} 23. exf5 {[%clk 0:02:57.3]} 23... Rxf5 {[%clk 0:03:24.5]}
24. Qd5+ {[%clk 0:02:55.7]} 24... Kh7 {[%clk 0:03:21.7]} 25. Rf3 {[%clk
0:02:39]} 25... Raf8 {[%clk 0:03:05.6]} 26. Rxf5 {[%clk 0:02:37.7]} 26... Rxf5
{[%clk 0:03:05.5]} 27. Bf3 {[%clk 0:02:18.8]} 27... Nf4 {[%clk 0:02:19.4]} 28.
Bxf4 {[%clk 0:02:14.9]} 28... exf4 {[%clk 0:02:18.6]} 29. Be4 {[%clk 0:02:13.9]}
29... fxg3 {[%clk 0:02:10.5]} 30. fxg3 {[%clk 0:01:57.2]} 30... Kh8 {[%clk
0:01:59.9]} 31. Bxf5 {[%clk 0:01:55.9]} 31... Bxf5 {[%clk 0:01:59.8]} 32. Ng2
{[%clk 0:01:52.5]} 32... Be6 {[%clk 0:01:45]} 33. Qf3 {[%clk 0:01:50.8]} 33...
Qc7 {[%clk 0:01:42.1]} 34. Re1 {[%clk 0:01:45.1]} 34... Bd7 {[%clk 0:01:40.4]}
35. Nh4 {[%clk 0:01:38.8]} 35... Kh7 {[%clk 0:01:27.2]} 36. Qe4+ {[%clk
0:01:34.8]} 36... Kg8 {[%clk 0:01:26.3]} 37. Ng6 {[%clk 0:01:30.7]} 37... Bc6
{[%clk 0:01:22.7]} 38. Ne7+ {[%clk 0:01:24]} 38... Bxe7 {[%clk 0:01:11.3]} 39.
Qxe7 {[%clk 0:01:23.9]} 39... Qxe7 {[%clk 0:01:10.9]} 40. Rxe7 {[%clk
0:01:22.6]} 40... Kf8 {[%clk 0:01:10.8]} 41. Rc7 {[%clk 0:01:20.9]} 41... g5
{[%clk 0:01:08.8]} 42. Kf2 {[%clk 0:01:19.6]} 42... h5 {[%clk 0:01:08.1]} 43. h4
{[%clk 0:01:17.8]} 43... gxh4 {[%clk 0:01:06.4]} 44. gxh4 {[%clk 0:01:17.1]}
44... a5 {[%clk 0:01:02.4]} 45. Ke3 {[%clk 0:01:14]} 45... Bd5 {[%clk
0:00:54.9]} 46. Rxc5 {[%clk 0:01:11.7]} 1-0

[Event "Live Chess"]
[Site "Chess.com"]
[Date "2023.05.21"]
[Round "-"]
[White "AbilifyXL"]
[Black "Long1968"]
[Result "1-0"]
[WhiteElo "1937"]
[BlackElo "970"]
[TimeControl "300"]
[EndTime "2:24:44 PDT"]
[Termination "AbilifyXL won by checkmate"]

1. d4 {[%clk 0:04:57.6]} 1... e6 {[%clk 0:04:57.9]} 2. c4 {[%clk 0:04:57.5]}
2... d5 {[%clk 0:04:56.3]} 3. Nc3 {[%clk 0:04:57.4]} 3... Nf6 {[%clk 0:04:53.1]}
4. cxd5 {[%clk 0:04:57.3]} 4... Nxd5 {[%clk 0:04:48.8]} 5. Nf3 {[%clk
0:04:57.2]} 5... Nxc3 {[%clk 0:04:46.5]} 6. bxc3 {[%clk 0:04:56.4]} 6... c5
{[%clk 0:04:44.4]} 7. e3 {[%clk 0:04:55.3]} 7... cxd4 {[%clk 0:04:41.9]} 8. exd4
{[%clk 0:04:54.4]} 8... Nc6 {[%clk 0:04:37.6]} 9. Bd3 {[%clk 0:04:53.5]} 9...
Bd6 {[%clk 0:04:31.9]} 10. O-O {[%clk 0:04:52.5]} 10... e5 {[%clk 0:04:29.5]}
11. Re1 {[%clk 0:04:50.9]} 11... f6 {[%clk 0:04:15.4]} 12. Qc2 {[%clk 0:04:44]}
12... Kf8 {[%clk 0:03:39.7]} 13. dxe5 {[%clk 0:04:19.7]} 13... Nxe5 {[%clk
0:03:33.6]} 14. Nxe5 {[%clk 0:04:17.9]} 14... Bxe5 {[%clk 0:03:30.6]} 15. Ba3+
{[%clk 0:03:47.1]} 15... Bd6 {[%clk 0:03:20.5]} 16. Qb3 {[%clk 0:03:37.3]} 16...
a5 {[%clk 0:02:32.6]} 17. Rad1 {[%clk 0:03:33.9]} 17... a4 {[%clk 0:02:20]} 18.
Qb2 {[%clk 0:03:28.2]} 18... Bxa3 {[%clk 0:02:08.7]} 19. Qxa3+ {[%clk
0:03:11.9]} 19... Kf7 {[%clk 0:01:51.9]} 20. Bc4+ {[%clk 0:03:08.5]} 20... Kg6
{[%clk 0:01:47.6]} 21. Rxd8 {[%clk 0:03:05.7]} 21... Rxd8 {[%clk 0:01:43.9]} 22.
Qe7 {[%clk 0:03:03.3]} 22... Bf5 {[%clk 0:01:35.7]} 23. Bf7+ {[%clk 0:02:49.6]}
23... Kh6 {[%clk 0:01:27.8]} 24. Qe3+ {[%clk 0:02:48.3]} 24... g5 {[%clk
0:01:20.6]} 25. h4 {[%clk 0:02:39.8]} 25... Rd3 {[%clk 0:01:16.3]} 26. hxg5+
{[%clk 0:02:38.3]} 26... fxg5 {[%clk 0:01:11.4]} 27. Qb6+ {[%clk 0:02:27.3]}
27... Kg7 {[%clk 0:00:38.2]} 28. Re7 {[%clk 0:02:09.1]} 28... Rf8 {[%clk
0:00:16.9]} 29. Bc4+ {[%clk 0:02:05.7]} 29... Kh8 {[%clk 0:00:08.7]} 30. Bxd3
{[%clk 0:02:04.3]} 30... Bxd3 {[%clk 0:00:05.6]} 31. Qd4+ {[%clk 0:02:03.8]}
31... Kg8 {[%clk 0:00:01.5]} 32. Qg7# {[%clk 0:02:03.7]} 1-0

[Event "Live Chess"]
[Site "Chess.com"]
[Date "2023.05.21"]
[Round "-"]
[White "FailsGambits"]
[Black "ExIsambard"]
[Result "0-1"]
[WhiteElo "1338"]
[BlackElo "1901"]
[TimeControl "300"]
[EndTime "2:25:06 PDT"]
[Termination "ExIsambard won by resignation"]

1. e4 {[%clk 0:04:58.1]} 1... Nc6 {[%clk 0:04:59]} 2. Nf3 {[%clk 0:04:56.9]}
2... d5 {[%clk 0:04:58.3]} 3. exd5 {[%clk 0:04:55.4]} 3... Qxd5 {[%clk
0:04:58.2]} 4. Nc3 {[%clk 0:04:52.8]} 4... Qh5 {[%clk 0:04:57.2]} 5. d3 {[%clk
0:04:45.6]} 5... Bg4 {[%clk 0:04:56.2]} 6. Be2 {[%clk 0:04:43.5]} 6... Nf6
{[%clk 0:04:55.2]} 7. h3 {[%clk 0:04:42.7]} 7... O-O-O {[%clk 0:04:54.3]} 8. O-O
{[%clk 0:04:28.9]} 8... Bxh3 {[%clk 0:04:52.9]} 9. gxh3 {[%clk 0:04:28.8]} 9...
Qxh3 {[%clk 0:04:51.7]} 10. Nh2 {[%clk 0:04:25.5]} 10... e6 {[%clk 0:04:50.8]}
11. Bg4 {[%clk 0:04:21.6]} 11... Qh4 {[%clk 0:04:48.6]} 12. Kg2 {[%clk
0:04:07.4]} 12... Bd6 {[%clk 0:04:44.4]} 13. Rh1 {[%clk 0:04:04.7]} 13... h5
{[%clk 0:04:41.4]} 14. Be2 {[%clk 0:03:08]} 14... Ng4 {[%clk 0:04:31.1]} 15.
Bxg4 {[%clk 0:02:47.2]} 15... hxg4 {[%clk 0:04:27.1]} 16. Qxg4 {[%clk
0:02:43.3]} 16... Qh7 {[%clk 0:03:41.7]} 17. Bg5 {[%clk 0:02:26.6]} 17... Rde8
{[%clk 0:03:25.6]} 18. Bf4 {[%clk 0:02:23.3]} 18... f5 {[%clk 0:03:20.1]} 19.
Qg3 {[%clk 0:02:11.6]} 19... e5 {[%clk 0:02:49.5]} 20. Nf3 {[%clk 0:02:09.2]}
20... Qg8 {[%clk 0:02:40.7]} 21. Rxh8 {[%clk 0:01:37.5]} 21... Qxh8 {[%clk
0:02:40.6]} 22. Rh1 {[%clk 0:01:33.2]} 22... Qg8 {[%clk 0:02:38.6]} 23. Bd2
{[%clk 0:01:28.2]} 23... e4 {[%clk 0:02:34.7]} 24. Qh3 {[%clk 0:01:18.1]} 24...
exf3+ {[%clk 0:02:32.5]} 25. Kxf3 {[%clk 0:01:17.9]} 25... Ne5+ {[%clk
0:02:24.8]} 26. Ke2 {[%clk 0:01:12.4]} 26... Ng4+ {[%clk 0:02:15.7]} 27. Kd1
{[%clk 0:01:05.6]} 27... Nxf2+ {[%clk 0:02:14.2]} 0-1

[Event "Live Chess"]
[Site "Chess.com"]
[Date "2023.05.21"]
[Round "-"]
[White "Ferrarifan27"]
[Black "SupremeTactician"]
[Result "0-1"]
[WhiteElo "2099"]
[BlackElo "2280"]
[TimeControl "300"]
[EndTime "2:25:14 PDT"]
[Termination "SupremeTactician won on time"]

1. e4 {[%clk 0:04:59.3]} 1... e5 {[%clk 0:04:59]} 2. Nf3 {[%clk 0:04:57.8]} 2...
Nc6 {[%clk 0:04:58.4]} 3. Bb5 {[%clk 0:04:56.5]} 3... a6 {[%clk 0:04:57.6]} 4.
Ba4 {[%clk 0:04:55.4]} 4... Nf6 {[%clk 0:04:56.9]} 5. O-O {[%clk 0:04:54.3]}
5... Nxe4 {[%clk 0:04:56.4]} 6. d4 {[%clk 0:04:51.9]} 6... Be7 {[%clk
0:04:55.4]} 7. Re1 {[%clk 0:04:48.5]} 7... b5 {[%clk 0:04:53.9]} 8. Rxe4 {[%clk
0:04:45.4]} 8... d5 {[%clk 0:04:53]} 9. Re1 {[%clk 0:04:39]} 9... bxa4 {[%clk
0:04:49.1]} 10. dxe5 {[%clk 0:04:35.7]} 10... O-O {[%clk 0:04:47.9]} 11. c3
{[%clk 0:04:33.7]} 11... Bg4 {[%clk 0:04:46.6]} 12. h3 {[%clk 0:04:31.1]} 12...
Bxf3 {[%clk 0:04:39.1]} 13. Qxf3 {[%clk 0:04:29.4]} 13... Bc5 {[%clk 0:04:36.9]}
14. Bf4 {[%clk 0:04:26.2]} 14... Qd7 {[%clk 0:04:33.4]} 15. Nd2 {[%clk
0:04:10.7]} 15... Rad8 {[%clk 0:04:29.4]} 16. Rad1 {[%clk 0:04:06.8]} 16... Rfe8
{[%clk 0:04:23.5]} 17. Qg3 {[%clk 0:04:03.4]} 17... Qf5 {[%clk 0:04:10.2]} 18.
Nf3 {[%clk 0:03:55.7]} 18... d4 {[%clk 0:04:02.7]} 19. Nh4 {[%clk 0:03:54.1]}
19... Qh5 {[%clk 0:04:00]} 20. Bg5 {[%clk 0:03:37.7]} 20... Rd5 {[%clk 0:03:55]}
21. Bf6 {[%clk 0:03:34.1]} 21... Bf8 {[%clk 0:03:47.7]} 22. cxd4 {[%clk
0:03:17.3]} 22... Nxd4 {[%clk 0:03:45.1]} 23. Kh1 {[%clk 0:02:58.8]} 23... Ne2
{[%clk 0:03:38.3]} 24. Rxe2 {[%clk 0:02:11.5]} 24... Rxd1+ {[%clk 0:03:36.4]}
25. Kh2 {[%clk 0:02:10.8]} 25... Qxe2 {[%clk 0:03:32.4]} 26. Nf5 {[%clk
0:02:05.7]} 26... g6 {[%clk 0:03:31.7]} 27. Qh4 {[%clk 0:01:41.7]} 27... Qe1
{[%clk 0:03:01.6]} 28. Nh6+ {[%clk 0:01:33.1]} 28... Bxh6 {[%clk 0:02:59.5]} 29.
Qxh6 {[%clk 0:01:33]} 29... Qg1+ {[%clk 0:02:57.4]} 30. Kg3 {[%clk 0:01:31.9]}
30... Rd3+ {[%clk 0:02:56.6]} 31. f3 {[%clk 0:01:29.5]} 31... Qe1+ {[%clk
0:02:33.1]} 32. Kh2 {[%clk 0:01:27.2]} 32... Qxe5+ {[%clk 0:02:32.8]} 33. Bxe5
{[%clk 0:01:24.9]} 33... Rxe5 {[%clk 0:02:32.7]} 34. Qf4 {[%clk 0:01:20.6]}
34... Red5 {[%clk 0:02:28]} 35. Qxc7 {[%clk 0:01:18.4]} 35... Rd6 {[%clk
0:02:26.7]} 36. Qc4 {[%clk 0:01:01]} 36... R3d4 {[%clk 0:02:19.3]} 37. Qc8+
{[%clk 0:00:57.8]} 37... Kg7 {[%clk 0:02:18.2]} 38. b3 {[%clk 0:00:54.7]} 38...
axb3 {[%clk 0:02:17.1]} 39. axb3 {[%clk 0:00:54.6]} 39... h5 {[%clk 0:02:16.3]}
40. Qc3 {[%clk 0:00:50.1]} 40... Kf6 {[%clk 0:02:14.4]} 41. Kg3 {[%clk
0:00:46.4]} 41... Ke6 {[%clk 0:02:11.1]} 42. Qe3+ {[%clk 0:00:43.7]} 42... Kf6
{[%clk 0:02:10.2]} 43. Qc3 {[%clk 0:00:42]} 43... Kg7 {[%clk 0:02:07.5]} 44. h4
{[%clk 0:00:40.9]} 44... Kh7 {[%clk 0:01:58]} 45. Kh3 {[%clk 0:00:37.4]} 45...
Rd3 {[%clk 0:01:48]} 46. Qc4 {[%clk 0:00:36.1]} 46... Kg7 {[%clk 0:01:41.2]} 47.
b4 {[%clk 0:00:33.1]} 47... R3d4 {[%clk 0:01:38.9]} 48. Qc3 {[%clk 0:00:31.5]}
48... Kg8 {[%clk 0:01:35.8]} 49. Qc8+ {[%clk 0:00:29.9]} 49... Kg7 {[%clk
0:01:34.2]} 50. Qc3 {[%clk 0:00:28.5]} 50... Kh7 {[%clk 0:01:05]} 51. Qc7 {[%clk
0:00:26.8]} 51... Rd7 {[%clk 0:01:03.3]} 52. Qc3 {[%clk 0:00:25.5]} 52... R4d6
{[%clk 0:00:57.5]} 53. Qc4 {[%clk 0:00:24.2]} 53... Kg7 {[%clk 0:00:56.1]} 54.
Qc3+ {[%clk 0:00:22.7]} 54... f6 {[%clk 0:00:55.7]} 55. Qc4 {[%clk 0:00:21.6]}
55... Rd5 {[%clk 0:00:54.2]} 56. Qc6 {[%clk 0:00:20.2]} 56... R5d6 {[%clk
0:00:53.2]} 57. Qc4 {[%clk 0:00:19.3]} 57... Rd4 {[%clk 0:00:41.9]} 58. Qc3
{[%clk 0:00:18.4]} 58... Kf7 {[%clk 0:00:38.7]} 59. Qb3+ {[%clk 0:00:17.1]}
59... Kf8 {[%clk 0:00:35.5]} 60. b5 {[%clk 0:00:16.1]} 60... axb5 {[%clk
0:00:34.5]} 61. Qxb5 {[%clk 0:00:15.2]} 61... R4d6 {[%clk 0:00:34.3]} 62. Qb2
{[%clk 0:00:13.9]} 62... Kg7 {[%clk 0:00:34]} 63. Qe2 {[%clk 0:00:12.7]} 63...
Rd3 {[%clk 0:00:32.4]} 64. Qe4 {[%clk 0:00:11.8]} 64... Rd1 {[%clk 0:00:31.2]}
65. Qe3 {[%clk 0:00:10.9]} 65... Rh1+ {[%clk 0:00:29.1]} 66. Kg3 {[%clk
0:00:09.7]} 66... Rhd1 {[%clk 0:00:28.3]} 67. Qe4 {[%clk 0:00:08.5]} 67... R1d4
{[%clk 0:00:26.5]} 68. Qe3 {[%clk 0:00:07.7]} 68... R4d5 {[%clk 0:00:21.9]} 69.
Qe4 {[%clk 0:00:06.1]} 69... g5 {[%clk 0:00:21.2]} 70. hxg5 {[%clk 0:00:04.7]}
70... Rxg5+ {[%clk 0:00:21.1]} 71. Kh4 {[%clk 0:00:03.9]} 71... Re5 {[%clk
0:00:19.4]} 72. Qf4 {[%clk 0:00:02.9]} 72... Kf7 {[%clk 0:00:18.3]} 73. Qg3
{[%clk 0:00:01.9]} 73... Rd4+ {[%clk 0:00:17.5]} 74. f4 {[%clk 0:00:00.6]} 74...
Ree4 {[%clk 0:00:16.5]} 75. Kxh5 {[%clk 0:00:00.1]} 75... Rxf4 {[%clk
0:00:15.9]} 0-1

[Event "Live Chess"]
[Site "Chess.com"]
[Date "2023.05.21"]
[Round "-"]
[White "Tushinskiy"]
[Black "Singapourfeuj"]
[Result "0-1"]
[WhiteElo "2144"]
[BlackElo "2189"]
[TimeControl "300"]
[EndTime "2:25:16 PDT"]
[Termination "Singapourfeuj won on time"]

1. d4 {[%clk 0:04:58.2]} 1... Nf6 {[%clk 0:04:59]} 2. c3 {[%clk 0:04:58.1]} 2...
g6 {[%clk 0:04:57.7]} 3. Nf3 {[%clk 0:04:55.6]} 3... Bg7 {[%clk 0:04:56.7]} 4.
Bf4 {[%clk 0:04:54.8]} 4... O-O {[%clk 0:04:56]} 5. Bg3 {[%clk 0:04:54.7]} 5...
Ne4 {[%clk 0:04:53.7]} 6. Nbd2 {[%clk 0:04:54.6]} 6... Nxg3 {[%clk 0:04:52.7]}
7. hxg3 {[%clk 0:04:54.5]} 7... c5 {[%clk 0:04:51.8]} 8. e3 {[%clk 0:04:53.7]}
8... d5 {[%clk 0:04:49.9]} 9. Bd3 {[%clk 0:04:52.4]} 9... Bg4 {[%clk 0:04:47.5]}
10. Qb1 {[%clk 0:04:48.4]} 10... Nd7 {[%clk 0:04:45]} 11. O-O {[%clk 0:04:42.4]}
11... cxd4 {[%clk 0:04:43.3]} 12. exd4 {[%clk 0:04:40.8]} 12... e5 {[%clk
0:04:37.7]} 13. dxe5 {[%clk 0:04:39.6]} 13... Nxe5 {[%clk 0:04:36.8]} 14. Nxe5
{[%clk 0:04:39.2]} 14... Bxe5 {[%clk 0:04:35.6]} 15. Re1 {[%clk 0:04:38.6]}
15... Qf6 {[%clk 0:04:33.8]} 16. Nf3 {[%clk 0:04:34.4]} 16... Bxf3 {[%clk
0:04:29.7]} 17. gxf3 {[%clk 0:04:34.3]} 17... Bc7 {[%clk 0:04:28.4]} 18. Kg2
{[%clk 0:04:33.1]} 18... Bb6 {[%clk 0:04:27.1]} 19. Re2 {[%clk 0:04:31.3]} 19...
Rfe8 {[%clk 0:04:26.3]} 20. Qc2 {[%clk 0:04:30.4]} 20... Rxe2 {[%clk 0:04:22.2]}
21. Qxe2 {[%clk 0:04:28.6]} 21... d4 {[%clk 0:04:20.5]} 22. c4 {[%clk
0:04:27.2]} 22... Qe6 {[%clk 0:04:15.3]} 23. Qc2 {[%clk 0:04:07]} 23... Re8
{[%clk 0:04:12.3]} 24. b4 {[%clk 0:04:05]} 24... h5 {[%clk 0:04:07.4]} 25. Rh1
{[%clk 0:03:56.8]} 25... Bc7 {[%clk 0:04:04.1]} 26. c5 {[%clk 0:03:55.4]} 26...
Kg7 {[%clk 0:04:01.6]} 27. Bc4 {[%clk 0:03:52.6]} 27... Qe5 {[%clk 0:03:58.4]}
28. Qd2 {[%clk 0:03:46.6]} 28... a5 {[%clk 0:03:49.6]} 29. a3 {[%clk 0:03:44.7]}
29... axb4 {[%clk 0:03:45.2]} 30. axb4 {[%clk 0:03:44.6]} 30... b6 {[%clk
0:03:44.1]} 31. cxb6 {[%clk 0:03:36.4]} 31... Bxb6 {[%clk 0:03:42.6]} 32. Bd3
{[%clk 0:03:33.7]} 32... Ra8 {[%clk 0:03:34.8]} 33. Re1 {[%clk 0:03:30.7]} 33...
Qf6 {[%clk 0:03:30.4]} 34. Re4 {[%clk 0:03:26.3]} 34... Ra3 {[%clk 0:03:24.8]}
35. Rf4 {[%clk 0:03:22.9]} 35... Qe6 {[%clk 0:03:18.2]} 36. Qc2 {[%clk
0:03:13.7]} 36... Ra2 {[%clk 0:03:14.4]} 37. Qd1 {[%clk 0:02:55.4]} 37... Qe3
{[%clk 0:03:02]} 38. Qf1 {[%clk 0:02:33.2]} 38... Rd2 {[%clk 0:02:57.3]} 39. Bc4
{[%clk 0:02:30.4]} 39... f5 {[%clk 0:02:55.9]} 40. Rh4 {[%clk 0:02:09.4]} 40...
Bd8 {[%clk 0:02:51]} 41. Rh2 {[%clk 0:02:06.5]} 41... f4 {[%clk 0:02:45.4]} 42.
Rh3 {[%clk 0:01:54.9]} 42... Bc7 {[%clk 0:02:39.7]} 43. g4 {[%clk 0:01:45.9]}
43... hxg4 {[%clk 0:02:22.4]} 44. fxg4 {[%clk 0:01:45.8]} 44... Qe4+ {[%clk
0:02:20.6]} 45. Rf3 {[%clk 0:01:41.8]} 45... Rb2 {[%clk 0:02:10.6]} 46. Qc1
{[%clk 0:01:31]} 46... Rxb4 {[%clk 0:02:05.5]} 47. Bd3 {[%clk 0:01:30.1]} 47...
Qe5 {[%clk 0:02:02.1]} 48. Qc6 {[%clk 0:01:26]} 48... Rb6 {[%clk 0:01:58.2]} 49.
Qd7+ {[%clk 0:01:24.2]} 49... Kf6 {[%clk 0:01:54.8]} 50. Qh7 {[%clk 0:01:16.7]}
50... g5 {[%clk 0:01:42.4]} 51. Bf5 {[%clk 0:01:01.8]} 51... Qe7 {[%clk
0:01:35]} 52. Qh8+ {[%clk 0:00:44.6]} 52... Kf7 {[%clk 0:01:20.4]} 53. Rh3
{[%clk 0:00:41.4]} 53... f3+ {[%clk 0:01:08.4]} 54. Rxf3 {[%clk 0:00:38.8]}
54... Bf4 {[%clk 0:01:03.7]} 55. Qxd4 {[%clk 0:00:30.2]} 55... Qd6 {[%clk
0:00:56.7]} 56. Qc4+ {[%clk 0:00:21.6]} 56... Kg7 {[%clk 0:00:54.8]} 57. Qc3+
{[%clk 0:00:14.2]} 57... Be5 {[%clk 0:00:50.4]} 58. Qc8 {[%clk 0:00:10.4]} 58...
Rb8 {[%clk 0:00:47.2]} 59. Qc2 {[%clk 0:00:08.2]} 59... Rh8 {[%clk 0:00:45.1]}
60. Rd3 {[%clk 0:00:06.1]} 60... Rh2+ {[%clk 0:00:41]} 61. Kg1 {[%clk 0:00:05]}
61... Qb8 {[%clk 0:00:35.5]} 62. Rd7+ {[%clk 0:00:03.6]} 62... Kh8 {[%clk
0:00:33.8]} 0-1

[Event "Live Chess"]
[Site "Chess.com"]
[Date "2023.05.21"]
[Round "-"]
[White "defenderalist"]
[Black "raminguy"]
[Result "1-0"]
[WhiteElo "1653"]
[BlackElo "1962"]
[TimeControl "300"]
[EndTime "2:25:20 PDT"]
[Termination "defenderalist won on time"]

1. e4 {[%clk 0:04:57.9]} 1... e5 {[%clk 0:04:59.4]} 2. Nf3 {[%clk 0:04:57.2]}
2... Nc6 {[%clk 0:04:59.1]} 3. Bc4 {[%clk 0:04:56.5]} 3... Bc5 {[%clk
0:04:58.6]} 4. Nc3 {[%clk 0:04:55.6]} 4... Nf6 {[%clk 0:04:58.1]} 5. O-O {[%clk
0:04:54.3]} 5... O-O {[%clk 0:04:57.7]} 6. d3 {[%clk 0:04:53.4]} 6... h6 {[%clk
0:04:57.2]} 7. h3 {[%clk 0:04:52.2]} 7... d6 {[%clk 0:04:55.9]} 8. Be3 {[%clk
0:04:51.8]} 8... Bxe3 {[%clk 0:04:55]} 9. fxe3 {[%clk 0:04:51]} 9... Be6 {[%clk
0:04:53.3]} 10. Nd5 {[%clk 0:04:49.6]} 10... Bxd5 {[%clk 0:04:52.4]} 11. exd5
{[%clk 0:04:47.5]} 11... Ne7 {[%clk 0:04:51.7]} 12. e4 {[%clk 0:04:46.7]} 12...
c6 {[%clk 0:04:50.9]} 13. dxc6 {[%clk 0:04:45.8]} 13... Nxc6 {[%clk 0:04:50]}
14. a3 {[%clk 0:04:43.9]} 14... a5 {[%clk 0:04:48.7]} 15. Nh2 {[%clk 0:04:41]}
15... d5 {[%clk 0:04:44.5]} 16. exd5 {[%clk 0:04:39.3]} 16... Nxd5 {[%clk
0:04:44.4]} 17. Ng4 {[%clk 0:04:36]} 17... h5 {[%clk 0:04:39.1]} 18. Bxd5 {[%clk
0:04:29.8]} 18... Qxd5 {[%clk 0:04:34.1]} 19. Ne3 {[%clk 0:04:28.7]} 19... Qd4
{[%clk 0:04:32.8]} 20. Qe2 {[%clk 0:04:17.7]} 20... Rad8 {[%clk 0:04:28.4]} 21.
Rab1 {[%clk 0:04:06.8]} 21... f5 {[%clk 0:04:25.7]} 22. Kh1 {[%clk 0:04:05.9]}
22... f4 {[%clk 0:04:21.4]} 23. Nc4 {[%clk 0:04:04.9]} 23... g6 {[%clk
0:03:56.6]} 24. Rfe1 {[%clk 0:03:59.8]} 24... Rf5 {[%clk 0:03:51.9]} 25. Qe4
{[%clk 0:03:51.4]} 25... f3 {[%clk 0:03:33.3]} 26. Qxd4 {[%clk 0:03:34.2]} 26...
fxg2+ {[%clk 0:03:31.5]} 27. Kxg2 {[%clk 0:03:32.8]} 27... exd4 {[%clk
0:03:24.5]} 28. Re6 {[%clk 0:03:21]} 28... Rg5+ {[%clk 0:03:21.8]} 29. Kh2
{[%clk 0:03:15.8]} 29... Rf8 {[%clk 0:03:21.1]} 30. Rg1 {[%clk 0:03:01.7]} 30...
Rf2+ {[%clk 0:03:18.9]} 31. Kh1 {[%clk 0:03:00.9]} 31... Rxg1+ {[%clk
0:03:08.4]} 32. Kxg1 {[%clk 0:03:00.2]} 32... Rxc2 {[%clk 0:03:02.1]} 33. Rxg6+
{[%clk 0:02:59]} 33... Kh7 {[%clk 0:02:58.3]} 34. Rg2 {[%clk 0:02:47.9]} 34...
Rc1+ {[%clk 0:02:39.5]} 35. Kf2 {[%clk 0:02:45.1]} 35... Rd1 {[%clk 0:02:35.7]}
36. Rg3 {[%clk 0:02:35.8]} 36... Ne7 {[%clk 0:02:28.4]} 37. Ke2 {[%clk
0:02:22.6]} 37... Rh1 {[%clk 0:02:20.2]} 38. Kf3 {[%clk 0:02:12.7]} 38... Nf5
{[%clk 0:02:07.1]} 39. Rg2 {[%clk 0:01:58]} 39... Rxh3+ {[%clk 0:02:03.7]} 40.
Ke4 {[%clk 0:01:57.1]} 40... Nh4 {[%clk 0:01:54.7]} 41. Rg1 {[%clk 0:01:46.7]}
41... Ng6 {[%clk 0:01:48.3]} 42. Kxd4 {[%clk 0:01:43.2]} 42... Rh4+ {[%clk
0:01:47.5]} 43. Kc3 {[%clk 0:01:41.1]} 43... Rh3 {[%clk 0:01:44.9]} 44. Nxa5
{[%clk 0:01:38.4]} 44... Nf4 {[%clk 0:01:43.2]} 45. Nxb7 {[%clk 0:01:30.5]}
45... Rxd3+ {[%clk 0:01:41]} 46. Kc4 {[%clk 0:01:27.3]} 46... Rd2 {[%clk
0:01:35.2]} 47. b4 {[%clk 0:01:19]} 47... h4 {[%clk 0:01:33.1]} 48. Nc5 {[%clk
0:01:17.3]} 48... h3 {[%clk 0:01:30.7]} 49. Rh1 {[%clk 0:01:14.6]} 49... h2
{[%clk 0:01:26.3]} 50. Ne4 {[%clk 0:01:13.1]} 50... Rg2 {[%clk 0:01:24]} 51.
Ng5+ {[%clk 0:01:04.7]} 51... Rxg5 {[%clk 0:00:58.2]} 52. Rxh2+ {[%clk
0:01:03.7]} 52... Kg6 {[%clk 0:00:57.4]} 53. a4 {[%clk 0:01:01.5]} 53... Ne6
{[%clk 0:00:54.3]} 54. a5 {[%clk 0:01:00.2]} 54... Rg4+ {[%clk 0:00:52.5]} 55.
Kb5 {[%clk 0:00:58.7]} 55... Nd4+ {[%clk 0:00:50.9]} 56. Kb6 {[%clk 0:00:54.1]}
56... Nc2 {[%clk 0:00:47.5]} 57. Rxc2 {[%clk 0:00:52.6]} 57... Rxb4+ {[%clk
0:00:33.2]} 58. Ka6 {[%clk 0:00:51.6]} 58... Rb1 {[%clk 0:00:31.1]} 59. Rc6+
{[%clk 0:00:50.1]} 59... Kf5 {[%clk 0:00:29.8]} 60. Rb6 {[%clk 0:00:49.5]} 60...
Ra1 {[%clk 0:00:28.5]} 61. Kb5 {[%clk 0:00:47.6]} 61... Rb1+ {[%clk 0:00:27]}
62. Kc6 {[%clk 0:00:46.8]} 62... Rc1+ {[%clk 0:00:26.2]} 63. Kb7 {[%clk
0:00:45.8]} 63... Ra1 {[%clk 0:00:25.4]} 64. a6 {[%clk 0:00:45]} 64... Ke5
{[%clk 0:00:22.1]} 65. a7 {[%clk 0:00:43.9]} 65... Kd5 {[%clk 0:00:19.6]} 66.
a8=Q {[%clk 0:00:43]} 66... Rxa8 {[%clk 0:00:18.6]} 67. Kxa8 {[%clk 0:00:42.3]}
67... Kc5 {[%clk 0:00:18.3]} 68. Ka7 {[%clk 0:00:41.4]} 68... Kd5 {[%clk
0:00:15.4]} 69. Kb7 {[%clk 0:00:39.9]} 69... Kc5 {[%clk 0:00:14.9]} 70. Kc7
{[%clk 0:00:39.3]} 70... Kd5 {[%clk 0:00:14.8]} 71. Rc6 {[%clk 0:00:38.6]} 71...
Ke5 {[%clk 0:00:13.9]} 72. Rd6 {[%clk 0:00:37.8]} 72... Ke4 {[%clk 0:00:13.1]}
73. Kc6 {[%clk 0:00:37]} 73... Ke5 {[%clk 0:00:12.4]} 74. Kc5 {[%clk 0:00:36.2]}
74... Ke4 {[%clk 0:00:10.5]} 75. Rd5 {[%clk 0:00:35.2]} 75... Kf4 {[%clk
0:00:09.6]} 76. Kd4 {[%clk 0:00:32.7]} 76... Kf3 {[%clk 0:00:08.7]} 77. Re5
{[%clk 0:00:31.9]} 77... Kf4 {[%clk 0:00:07.9]} 78. Kd5 {[%clk 0:00:30.8]} 78...
Kg4 {[%clk 0:00:06.8]} 79. Ke4 {[%clk 0:00:30]} 79... Kg3 {[%clk 0:00:05.8]} 80.
Rf5 {[%clk 0:00:29.1]} 80... Kg4 {[%clk 0:00:05.1]} 81. Ke5 {[%clk 0:00:28.1]}
81... Kg3 {[%clk 0:00:03.9]} 82. Rf4 {[%clk 0:00:27.6]} 82... Kh3 {[%clk
0:00:02.9]} 83. Kf5 {[%clk 0:00:26.3]} 83... Kg3 {[%clk 0:00:02]} 84. Ke4 {[%clk
0:00:25.5]} 84... Kg2 {[%clk 0:00:01.1]} 85. Ke3 {[%clk 0:00:23.8]} 85... Kg3
{[%clk 0:00:00.4]} 86. Ke4 {[%clk 0:00:22.8]} 1-0